bitfinex/quotes_BTCUSD_20250730
["timestamp","ask_amount","ask_price","bid_price","bid_amount"]
[1753885829434,0.1221,117950.0,117940.0,0.3982573]
[1753885829659,0.49161146,117960.0,117950.0,0.0316]
[1753885829873,0.5080763,117960.0,117950.0,0.0316]
[1753885830082,0.67762529,117960.0,117950.0,0.0316]
[1753885830322,0.49364146,117960.0,117950.0,0.0316]
[1753885830530,0.50211876,117960.0,117950.0,0.0316]
[1753885830998,0.5105962,117960.0,117950.0,0.0326]
[1753885831730,0.67166818,117960.0,117950.0,0.001]
[1753885833000,0.71954372,117960.0,117950.0,0.001]
[1753885833839,0.18651919,117950.0,117940.0,0.0305]
[1753885834055,0.5124907,117950.0,117940.0,0.03246]
[1753885834280,0.6611612,117960.0,117950.0,0.03]
[1753885834518,0.7936312,117960.0,117950.0,0.03]
[1753885835221,0.0084778,117950.0,117940.0,0.17905]
[1753885835509,0.68016259,117950.0,117940.0,0.18201]
[1753885835751,0.68016259,117950.0,117940.0,0.001]
[1753885835752,0.66633684,117950.0,117940.0,0.001]
[1753885835976,0.72953684,117950.0,117940.0,0.001]
[1753885836199,0.69903684,117950.0,117940.0,0.001]
[1753885836892,0.00847852,117940.0,117930.0,0.0604]
[1753885837178,0.37154412,117940.0,117930.0,0.18011]
[1753885837597,0.01695676,117940.0,117930.0,0.18011]
[1753885838236,0.01695676,117940.0,117930.0,0.18025548]
[1753885838489,0.00847831,117940.0,117930.0,0.18425548]
[1753885838707,0.49161347,117950.0,117930.0,0.18425548]
[1753885838933,0.47465736,117950.0,117940.0,0.031]
[1753885839144,0.53261351,117960.0,117950.0,0.031]
[1753885839347,0.00847759,117950.0,117940.0,0.17895]
[1753885839565,0.01695532,117950.0,117940.0,0.18091]
[1753885840097,0.02543312,117950.0,117940.0,0.18091]
[1753885840565,0.03391107,117950.0,117940.0,0.18091]
[1753885840791,0.02543312,117950.0,117940.0,0.18091]
[1753885841044,0.0084768,117960.0,117940.0,0.35148775]
[1753885841266,0.80903974,117970.0,117950.0,0.18025]
[1753885841495,0.4375,117970.0,117960.0,0.48239899]
[1753885841751,0.02966185,117980.0,117970.0,0.16953462]
[1753885841975,0.02966185,117980.0,117970.0,0.23419462]
[1753885842204,0.16433943,117990.0,117980.0,0.033]
[1753885842448,0.18768981,117990.0,117980.0,0.03496]
[1753885842672,0.22494985,117990.0,117980.0,0.14964]
[1753885842900,0.20799999,117990.0,117980.0,0.14964]
[1753885843234,0.2080485,117990.0,117980.0,0.18264]
[1753885843452,0.2080485,117990.0,117980.0,0.18571]
[1753885843681,0.0776085,117990.0,117980.0,0.18571]
[1753885843918,0.08608336,117990.0,117980.0,0.18571]
[1753885844166,0.05862907,117990.0,117980.0,0.35523025]
[1753885844399,0.04273808,117990.0,117980.0,0.48567025]
[1753885844636,0.04273808,117990.0,117980.0,0.31615]
[1753885844863,0.04273808,117990.0,117980.0,0.48567025]
[1753885845088,0.04373808,117990.0,117980.0,0.48567025]
[1753885845338,0.6294859,117990.0,117980.0,0.033]
[1753885845573,0.6294859,117990.0,117970.0,0.31279]
[1753885845574,0.5811075,117990.0,117970.0,0.31279]
[1753885845791,0.53194297,117990.0,117970.0,0.31279]
[1753885846014,0.44577601,117990.0,117980.0,0.14904]
[1753885846266,0.42989859,117990.0,117980.0,0.15211]
[1753885846490,0.43837366,117990.0,117980.0,0.15211]
[1753885846939,0.43837366,117990.0,117980.0,0.15311]
[1753885847155,0.43836787,117990.0,117980.0,0.15311]
[1753885847383,0.43836777,117990.0,117980.0,0.15311]
[1753885847608,0.40446827,117990.0,117980.0,0.15411]
[1753885847873,0.04785091,117990.0,117980.0,0.18441]
[1753885848118,0.04785091,117990.0,117980.0,0.35393025]
[1753885848376,0.03990542,117990.0,117980.0,0.18441]
[1753885848605,0.04784074,117990.0,117980.0,0.18441]
[1753885849548,0.04784074,117990.0,117980.0,0.35393025]
[1753885849762,0.04784074,117990.0,117980.0,0.18441]
[1753885849995,0.04784074,117990.0,117980.0,0.35393025]
[1753885850224,0.0478389,117990.0,117980.0,0.35393025]
[1753885850444,0.03990358,117990.0,117980.0,0.36240626]
[1753885850734,0.03990358,117990.0,117980.0,0.38783343]
[1753885850923,0.03395219,117990.0,117980.0,0.47231073]
[1753885851150,4.843e-05,117990.0,117980.0,0.47231073]
[1753885852305,4.843e-05,117990.0,117980.0,0.47131073]
[1753885852547,4.843e-05,117990.0,117980.0,0.82589809]
[1753885853250,4.843e-05,117990.0,117980.0,0.82489809]
[1753885853475,4.843e-05,117990.0,117980.0,0.47031073]
[1753885853984,4.843e-05,117990.0,117980.0,0.47831073]
[1753885854181,4.843e-05,117990.0,117980.0,0.83289809]
[1753885856077,4.843e-05,117990.0,117980.0,0.47831073]
[1753885856338,4.843e-05,117990.0,117980.0,0.4613595]
[1753885856571,4.843e-05,117990.0,117980.0,0.47831087]
[1753885856804,4.843e-05,117990.0,117980.0,0.59183935]
[1753885857017,4.843e-05,117990.0,117980.0,0.600315]
[1753885857659,4.843e-05,117990.0,117980.0,0.60079051]
[1753885858077,4.843e-05,117990.0,117980.0,0.60679051]
[1753885858319,4.843e-05,117990.0,117980.0,0.96137787]
[1753885858949,4.843e-05,117990.0,117980.0,0.94679051]
[1753885859375,4.843e-05,117990.0,117980.0,1.30137787]
[1753885864345,4.843e-05,117990.0,117980.0,1.30133787]
[1753885864795,4.843e-05,117990.0,117980.0,0.94675051]
[1753885865012,4.843e-05,117990.0,117980.0,1.30133787]
[1753885871804,4.843e-05,117990.0,117980.0,1.30024887]
[1753885872330,4.843e-05,117990.0,117980.0,1.30016887]
[1753885873755,0.00220843,117990.0,117980.0,0.94251151]
[1753885874165,4.843e-05,117990.0,117980.0,0.94573151]
[1753885877940,0.00220843,117990.0,117980.0,0.2687283]
[1753885878145,0.56106318,117990.0,117980.0,0.0904773]
[1753885878352,0.63901304,117990.0,117980.0,0.2208373]
[1753885878567,0.64748812,117990.0,117980.0,0.2208373]
[1753885878773,0.82492248,117990.0,117980.0,0.2208373]
[1753885879381,0.81644719,117990.0,117980.0,0.2208373]
[1753885879591,0.82492241,117990.0,117980.0,0.2208373]
[1753885881455,0.82492241,117990.0,117980.0,0.13636]
[1753885881694,0.7485848,117990.0,117980.0,0.13636]
[1753885882560,0.57060325,117990.0,117980.0,0.13636]
[1753885882773,0.58755369,117990.0,117980.0,0.13636]
[1753885882981,0.75705958,117990.0,117980.0,0.13636]
[1753885883806,0.5790784,117990.0,117980.0,0.13636]
[1753885883962,0.75705951,117990.0,117980.0,0.13636]
[1753885884185,0.7485848,117990.0,117980.0,0.13636]
[1753885884590,0.57907891,117990.0,117980.0,0.13636]
[1753885884977,0.75706009,117990.0,117980.0,0.13636]
[1753885885204,0.74913227,117990.0,117980.0,0.13636]
[1753885885959,0.56267587,117990.0,117980.0,0.13636]
[1753885886282,0.73218176,117990.0,117980.0,0.13636]
[1753885886856,0.74027889,117990.0,117980.0,0.13636]
[1753885887060,0.74027889,117990.0,117980.0,0.006]
[1753885887222,0.75417273,117990.0,117980.0,0.006]
[1753885888060,0.85609905,117990.0,117980.0,0.004]
[1753885888262,0.24888757,117970.0,117960.0,0.13036]
[1753885888468,0.02543061,117960.0,117950.0,0.13036]
[1753885888678,0.51908211,117960.0,117950.0,0.2148373]
[1753885888934,0.1309668,117960.0,117950.0,0.2148373]
[1753885889125,0.0137568,117960.0,117950.0,0.3334173]
[1753885889326,0.00528,117960.0,117950.0,0.50298067]
[1753885889534,0.00214,117960.0,117950.0,0.53585067]
[1753885889745,0.00214,117960.0,117950.0,0.53887067]
[1753885889945,0.00214,117960.0,117950.0,0.54734883]
[1753885890171,0.00214,117960.0,117950.0,0.54934883]
[1753885890568,0.00214,117960.0,117950.0,0.55782685]
[1753885890774,0.00847615,117970.0,117950.0,0.59052692]
[1753885890978,0.85354413,117980.0,117960.0,0.11858]
[1753885891222,0.01061608,117970.0,117960.0,0.12055]
[1753885891455,0.00214,117970.0,117960.0,0.29009899]
[1753885891687,0.31599815,117990.0,117960.0,0.45167366]
[1753885891908,0.00847543,117980.0,117970.0,0.11858]
[1753885892130,0.00847543,117980.0,117970.0,0.1304]
[1753885892131,0.1479168,117980.0,117970.0,0.1304]
[1753885892337,0.14044101,117980.0,117970.0,0.1304]
[1753885892554,0.12349,117980.0,117970.0,0.1304]
[1753885892770,0.00314,117980.0,117970.0,0.24898]
[1753885893006,0.00314,117980.0,117970.0,0.41851462]
[1753885893238,0.00214,117980.0,117970.0,0.25095]
[1753885893676,0.47470779,117990.0,117980.0,0.16952025]
[1753885893906,0.01011787,117990.0,117980.0,0.00197]
[1753885894150,0.00218843,117990.0,117980.0,0.12055]
[1753885894802,4.843e-05,117990.0,117980.0,0.31004205]
[1753885895016,4.843e-05,117990.0,117980.0,0.33276619]
[1753885895886,4.843e-05,117990.0,117980.0,0.46499486]
[1753885896094,4.843e-05,117990.0,117980.0,0.47447037]
[1753885896293,4.843e-05,117990.0,117980.0,0.82877973]
[1753885896927,4.843e-05,117990.0,117980.0,0.82777973]
[1753885897355,4.843e-05,117990.0,117980.0,0.47347037]
[1753885898453,4.843e-05,117990.0,117980.0,0.47647037]
[1753885898680,4.843e-05,117990.0,117980.0,0.45751928]
[1753885898891,4.843e-05,117990.0,117980.0,0.464995]
[1753885899106,0.00218843,117990.0,117980.0,0.55264356]
[1753885899323,0.00218843,117990.0,117980.0,0.56111935]
[1753885899552,4.843e-05,117990.0,117980.0,0.56411942]
[1753885899761,4.843e-05,117990.0,117980.0,0.57259514]
[1753885899973,4.843e-05,117990.0,117980.0,0.57259521]
[1753885900180,4.843e-05,117990.0,117980.0,0.55564356]
[1753885900413,4.843e-05,117990.0,117980.0,0.56411935]
[1753885900859,4.843e-05,117990.0,117980.0,0.58107058]
[1753885901080,4.843e-05,117990.0,117980.0,0.61427058]
[1753885902165,4.843e-05,117990.0,117980.0,0.96857994]
[1753885902365,4.843e-05,117990.0,117980.0,0.61427058]
[1753885902977,4.843e-05,117990.0,117980.0,0.96857994]
[1753885903395,4.843e-05,117990.0,117980.0,0.61427058]
[1753885909997,0.53716269,118020.0,117990.0,0.18644943]
[1753885910206,0.25091198,118020.0,118000.0,0.2149973]
[1753885910418,0.01061349,118010.0,118000.0,0.2149973]
[1753885910644,0.01908684,118010.0,118000.0,0.2149973]
[1753885911116,0.02756041,118010.0,118000.0,0.2149973]
[1753885911335,0.1084079,118010.0,118000.0,0.2149973]
[1753885911540,0.09146041,118010.0,118000.0,0.2149973]
[1753885911819,0.04191335,118010.0,118000.0,0.2149973]
[1753885912056,0.04191328,118010.0,118000.0,0.3335773]
[1753885912271,0.00214,118010.0,118000.0,0.3335773]
[1753885912688,0.00218853,118010.0,118000.0,0.3335773]
[1753885912899,0.01066174,118010.0,118000.0,0.3335773]
[1753885913376,0.01913516,118010.0,118000.0,0.3335773]
[1753885913594,0.01066181,118010.0,118000.0,0.3335773]
[1753885913815,0.03660389,118010.0,118000.0,0.51653339]
[1753885914029,0.03446389,118010.0,118000.0,0.55820789]
[1753885914260,4.853e-05,118010.0,118000.0,0.55820789]
[1753885914480,4.853e-05,118010.0,118000.0,0.96963996]
[1753885914942,4.853e-05,118010.0,118000.0,0.97163996]
[1753885915159,4.853e-05,118010.0,118000.0,0.6173306]
[1753885916037,4.853e-05,118010.0,118000.0,0.6183306]
[1753885916735,4.853e-05,118010.0,118000.0,0.97263996]
[1753885920337,4.853e-05,118010.0,118000.0,1.31263996]
[1753885920585,1e-08,118010.0,118000.0,1.66694932]
[1753885920791,1e-08,118010.0,118000.0,1.91939834]
[1753885921018,1e-08,118010.0,118000.0,1.94439834]
[1753885921251,0.03391882,118050.0,118040.0,0.25834833]
[1753885921475,0.0002,118060.0,118050.0,0.2033025]
[1753885921699,0.0002,118060.0,118050.0,0.0866173]
[1753885921700,0.0026657,118060.0,118050.0,0.0866173]
[1753885921934,0.0026657,118060.0,118050.0,0.38118477]
[1753885922147,0.0026657,118060.0,118050.0,0.37906703]
[1753885922784,0.0026657,118060.0,118050.0,0.4044794]
[1753885922993,0.01058558,118060.0,118050.0,0.38217703]
[1753885923237,0.14835361,118060.0,118050.0,0.0844773]
[1753885923454,0.14835354,118060.0,118050.0,0.2151973]
[1753885923663,0.10476558,118060.0,118050.0,0.2151973]
[1753885923881,0.07442558,118060.0,118050.0,0.2151973]
[1753885924320,0.07442558,118060.0,118050.0,0.2161973]
[1753885924961,0.08289527,118060.0,118050.0,0.2161973]
[1753885925172,0.04058558,118060.0,118050.0,0.2161973]
[1753885925589,0.0490552,118060.0,118050.0,0.0854773]
[1753885925826,0.04058558,118060.0,118050.0,0.2161573]
[1753885926046,0.04058558,118060.0,118050.0,0.38557703]
[1753885926262,0.05145317,118060.0,118050.0,0.51707794]
[1753885926479,0.05145317,118060.0,118050.0,0.51707801]
[1753885926686,0.04551621,118060.0,118050.0,0.50860703]
[1753885927393,0.04353621,118060.0,118050.0,0.56309878]
[1753885927599,0.04353621,118060.0,118050.0,0.51385703]
[1753885927816,0.04551621,118060.0,118050.0,0.51385703]
[1753885928058,0.04353621,118060.0,118050.0,0.57665703]
[1753885928260,0.0002,118080.0,118070.0,0.59759881]
[1753885928485,0.00613374,118100.0,118090.0,0.25756583]
[1753885928706,0.00613374,118100.0,118090.0,0.47502313]
[1753885928923,0.00034564,118100.0,118090.0,0.82933249]
[1753885929127,0.00034564,118100.0,118090.0,0.95547249]
[1753885929343,0.00034564,118100.0,118090.0,0.60116313]
[1753885930024,0.03400832,118100.0,118090.0,0.60116313]
[1753885930212,0.0399417,118100.0,118090.0,0.60116313]
[1753885930417,0.02415304,118100.0,118090.0,0.2127573]
[1753885930624,0.02415304,118100.0,118090.0,0.25383965]
[1753885930844,0.03261993,118100.0,118090.0,0.0844773]
[1753885931073,0.66721196,118100.0,118090.0,0.0844773]
[1753885931270,0.02540298,118090.0,118070.0,0.30015076]
[1753885931495,0.35637936,118080.0,118070.0,0.16939076]
[1753885931685,0.00800338,118080.0,118070.0,0.16939076]
[1753885931898,0.00800338,118080.0,118070.0,0.25386806]
[1753885932099,0.02381165,118080.0,118070.0,0.0844773]
[1753885932324,0.02381165,118080.0,118070.0,0.2075073]
[1753885932533,0.02381165,118080.0,118070.0,0.0864773]
[1753885932534,0.37812101,118080.0,118070.0,0.0864773]
[1753885932721,0.79820333,118080.0,118070.0,0.002]
[1753885932935,0.00846904,118070.0,118050.0,0.29244973]
[1753885933084,0.00206,118060.0,118050.0,0.38539752]
[1753885933291,0.46603881,118060.0,118030.0,0.30093802]
[1753885933495,0.46603881,118060.0,118040.0,0.29246362]
[1753885933496,0.52251897,118060.0,118040.0,0.29246362]
[1753885933698,0.54792869,118060.0,118040.0,0.12303]
[1753885933908,0.00592961,118060.0,118040.0,0.3800509]
[1753885934131,0.14845952,118060.0,118040.0,0.3800509]
[1753885934348,0.15453469,118060.0,118040.0,0.3800509]
[1753885934494,0.16300467,118060.0,118040.0,0.3800509]
[1753885934715,0.15453469,118060.0,118040.0,0.3885226]
[1753885934939,0.16300474,118060.0,118040.0,0.3800509]
[1753885935186,0.15453469,118060.0,118040.0,0.3800509]
[1753885935396,0.1630046,118060.0,118040.0,0.3800509]
[1753885935597,0.51731396,118060.0,118050.0,0.001]
[1753885935974,0.51731396,118060.0,118040.0,0.3810509]
[1753885936383,0.53425413,118060.0,118040.0,0.2116173]
[1753885936664,0.00198,118050.0,118040.0,0.38319139]
[1753885937113,0.00198,118050.0,118040.0,0.2137573]
[1753885937338,0.00198,118050.0,118040.0,0.2106473]
[1753885937554,0.01638332,118050.0,118040.0,0.2085073]
[1753885937832,0.00791291,118050.0,118040.0,0.2085073]
[1753885938194,0.00291344,118050.0,118040.0,0.2075073]
[1753885938394,0.01694082,118050.0,118040.0,0.2075073]
[1753885938621,0.00847034,118050.0,118040.0,0.2095073]
[1753885938830,0.01694082,118050.0,118040.0,0.2105073]
[1753885939041,0.03388242,118050.0,118040.0,0.2105073]
[1753885939192,0.02541151,118050.0,118040.0,0.2105073]
[1753885939395,0.02541144,118050.0,118040.0,0.2105073]
[1753885939624,0.3797208,118050.0,118040.0,0.2105073]
[1753885940239,0.38819157,118050.0,118040.0,0.2105073]
[1753885942796,0.6058707,118050.0,118040.0,0.003]
[1753885943044,0.59739993,118050.0,118040.0,0.003]
[1753885943933,0.42797991,118050.0,118040.0,0.003]
[1753885944210,0.44492102,118050.0,118040.0,0.003]
[1753885944710,0.43645025,118050.0,118040.0,0.003]
[1753885944936,0.45339164,118050.0,118040.0,0.003]
[1753885945388,0.64538146,118050.0,118040.0,0.003]
[1753885945598,0.9912202,118050.0,118040.0,0.003]
[1753885945818,0.63691084,118050.0,118040.0,0.003]
[1753885946056,0.63664084,118050.0,118040.0,0.003]
[1753885946535,0.13163,118050.0,118040.0,0.29336409]
[1753885946760,0.1312,118050.0,118040.0,0.12393]
[1753885946967,0.58147051,118060.0,118040.0,0.12393]
[1753885947181,0.00847034,118050.0,118040.0,0.12393]
[1753885947403,0.13124,118050.0,118040.0,0.12393]
[1753885948262,0.13124,118050.0,118040.0,0.12293]
[1753885948725,0.37139444,118060.0,118040.0,0.29036233]
[1753885948949,0.13116,118050.0,118040.0,0.12093]
[1753885949378,0.37139444,118060.0,118040.0,0.29136249]
[1753885949600,0.14006034,118050.0,118040.0,0.12293]
[1753885949910,0.98785034,118050.0,118040.0,0.002]
[1753885950170,0.98812034,118050.0,118040.0,0.002]
[1753885950388,0.9940689,118050.0,118040.0,0.002]
[1753885950619,0.63975954,118050.0,118040.0,0.002]
[1753885950819,1.00200023,118050.0,118040.0,0.002]
[1753885951078,0.98812034,118050.0,118040.0,0.002]
[1753885951318,0.98812034,118050.0,118040.0,0.001]
[1753885951319,0.63381098,118050.0,118040.0,0.001]
[1753885952190,0.63354098,118050.0,118040.0,0.001]
[1753885952646,0.63454098,118050.0,118040.0,0.001]
[1753885953484,0.64048871,118050.0,118040.0,0.001]
[1753885953919,0.64048886,118050.0,118040.0,0.001]
[1753885954155,0.00847105,118040.0,118030.0,0.24694]
[1753885954386,0.38072159,118050.0,118040.0,0.1178]
[1753885954615,0.5560892,118050.0,118040.0,0.1178]
[1753885954855,0.5560892,118050.0,118040.0,0.12093]
[1753885955083,0.5555192,118050.0,118040.0,0.12093]
[1753885955297,0.17790572,118040.0,118030.0,0.13425]
[1753885955512,0.54915826,118040.0,118030.0,0.25205]
[1753885955721,0.37125218,118040.0,118030.0,0.25205]
[1753885955934,0.37125183,118040.0,118030.0,0.25205]
[1753885956140,0.37972339,118040.0,118030.0,0.25205]
[1753885956375,0.35430936,118040.0,118030.0,0.25205]
[1753885956584,0.44132194,118050.0,118030.0,0.25205]
[1753885956791,0.58659053,118050.0,118030.0,0.13627]
[1753885957008,0.55609053,118050.0,118040.0,0.11578]
[1753885957229,0.55652053,118050.0,118040.0,0.11578]
[1753885957518,0.55652053,118050.0,118040.0,0.11891]
[1753885957939,0.55552053,118050.0,118040.0,0.11891]
[1753885959357,0.55652053,118050.0,118040.0,0.11891]
[1753885959982,0.55652053,118050.0,118040.0,0.12093]
[1753885960404,0.61011961,118050.0,118030.0,0.25003]
[1753885960622,0.37125211,118040.0,118030.0,0.25003]
[1753885960836,0.37125211,118040.0,118030.0,0.25205]
[1753885961065,0.56401499,118040.0,118030.0,0.11578]
[1753885961315,0.55805946,118040.0,118030.0,0.11578]
[1753885961531,0.2037501,118040.0,118030.0,0.11578]
[1753885961754,0.38862537,118040.0,118030.0,0.11578]
[1753885961994,0.55805946,118040.0,118030.0,0.11578]
[1753885962201,0.38015367,118040.0,118030.0,0.11578]
[1753885962422,0.38611014,118040.0,118030.0,0.11578]
[1753885962638,0.38611014,118040.0,118030.0,0.11891]
[1753885962860,0.39458184,118040.0,118030.0,0.11891]
[1753885963075,0.56401593,118040.0,118030.0,0.11991]
[1753885963297,0.39458184,118040.0,118030.0,0.11991]
[1753885963710,0.38611014,118040.0,118030.0,0.11991]
[1753885963942,0.00595647,118040.0,118030.0,0.12193]
[1753885964173,0.60327105,118050.0,118030.0,0.43755574]
[1753885964174,0.01442709,118050.0,118030.0,0.43755574]
[1753885964399,0.00595647,118050.0,118040.0,0.24991]
[1753885964615,0.01442688,118050.0,118040.0,0.28383]
[1753885964840,0.00595647,118050.0,118040.0,0.56904139]
[1753885965111,0.03998222,118060.0,118040.0,0.3996073]
[1753885965329,0.03151146,118060.0,118040.0,0.4501312]
[1753885965550,0.03998151,118060.0,118050.0,0.11891]
[1753885965773,0.02304148,118060.0,118050.0,0.12093]
[1753885965990,0.0558626,118060.0,118050.0,0.15283]
[1753885966221,0.05586151,118060.0,118050.0,0.15283]
[1753885966437,0.2332074,118060.0,118050.0,0.12093]
[1753885966655,0.57947714,118060.0,118050.0,0.12093]
[1753885966874,0.56453733,118060.0,118050.0,0.24678]
[1753885967307,0.56453733,118060.0,118030.0,0.14828]
[1753885967308,0.17789071,118050.0,118030.0,0.14828]
[1753885967555,0.01694247,118040.0,118030.0,0.2358873]
[1753885967795,0.03136926,118040.0,118030.0,0.3690673]
[1753885968052,0.02289785,118040.0,118030.0,0.3690673]
[1753885968317,0.02541388,118040.0,118030.0,0.3365673]
[1753885968748,0.01694247,118040.0,118030.0,0.3365673]
[1753885968964,0.02541388,118040.0,118030.0,0.3365673]
[1753885970279,0.03388536,118040.0,118030.0,0.3365673]
[1753885970724,0.02541388,118040.0,118030.0,0.3365673]
[1753885970937,0.03388544,118040.0,118030.0,0.3365673]
[1753885971149,0.02541388,118040.0,118030.0,0.3365673]
[1753885971362,0.02541388,118040.0,118030.0,0.3375673]
[1753885972014,0.03388544,118040.0,118030.0,0.3375673]
[1753885972455,0.02541388,118040.0,118030.0,0.3375673]
[1753885972726,0.03388544,118040.0,118030.0,0.3375673]
[1753885972940,0.02541388,118040.0,118030.0,0.3375673]
[1753885973188,0.01694247,118040.0,118030.0,0.3703673]
[1753885973432,0.02541223,118050.0,118030.0,0.4008673]
[1753885973668,0.02289602,118050.0,118030.0,0.57031533]
[1753885973909,0.01442504,118050.0,118040.0,0.18221]
[1753885974151,0.01442504,118050.0,118040.0,0.18423]
[1753885974388,0.0059547,118050.0,118040.0,0.43814139]
[1753885974619,0.03150976,118060.0,118040.0,0.43814139]
[1753885974871,0.04791839,118060.0,118050.0,0.16356]
[1753885975112,0.02285899,118090.0,118080.0,0.25928232]
[1753885975347,0.03491828,118100.0,118090.0,0.20196235]
[1753885975591,0.03491828,118100.0,118090.0,0.28845965]
[1753885975592,0.05092914,118100.0,118090.0,0.28845965]
[1753885975813,0.05092914,118100.0,118090.0,0.40256965]
[1753885976296,0.03506379,118100.0,118090.0,0.40256965]
[1753885976584,0.48538936,118120.0,118100.0,0.16934801]
[1753885976828,0.00214,118110.0,118100.0,0.30042801]
[1753885977011,0.00214,118110.0,118100.0,0.41453801]
[1753885978210,0.00214,118110.0,118100.0,0.24519]
[1753885978444,0.01799908,118110.0,118100.0,0.41453801]
[1753885978922,0.01799908,118110.0,118100.0,0.24511]
[1753885979157,0.02120908,118110.0,118100.0,0.24511]
[1753885979377,0.02120908,118110.0,118100.0,0.41445801]
[1753885979901,0.01585908,118110.0,118100.0,0.42043801]
[1753885980137,0.03508249,118120.0,118110.0,0.16933367]
[1753885980438,0.015843,118120.0,118110.0,0.28548367]
[1753885980676,1.03854829,118130.0,118120.0,0.16931933]
[1753885980922,1.03854829,118130.0,118110.0,0.16933367]
[1753885980923,0.54068782,118130.0,118110.0,0.16933367]
[1753885981143,0.56608248,118130.0,118120.0,0.11411]
[1753885981596,0.001,118120.0,118110.0,0.16933367]
[1753885981837,0.00314,118120.0,118110.0,0.28344367]
[1753885982061,0.01897853,118120.0,118110.0,0.28548367]
[1753885982499,0.02218853,118120.0,118110.0,0.24511]
[1753885983192,0.02118853,118120.0,118110.0,0.24511]
[1753885983629,0.00535,118120.0,118110.0,0.24511]
[1753885983844,0.0211786,118120.0,118110.0,0.24511]
[1753885984066,0.0211786,118120.0,118110.0,0.41444367]
[1753885984301,0.0189686,118120.0,118110.0,0.41648367]
[1753885984536,0.0168286,118120.0,118110.0,0.41942367]
[1753885984759,0.001,118120.0,118110.0,0.53600097]
[1753885984977,0.001,118120.0,118110.0,0.56900097]
[1753885985421,0.001,118120.0,118110.0,0.57746765]
[1753885985858,0.001,118120.0,118110.0,0.56900097]
[1753885986351,0.001,118120.0,118110.0,0.50104097]
[1753885986564,0.00314,118120.0,118110.0,0.50104097]
[1753885986828,0.36065936,118120.0,118100.0,0.28345799]
[1753885987059,0.39043097,118120.0,118110.0,0.13308]
[1753885987270,0.39043097,118120.0,118110.0,0.13408]
[1753885987477,0.39043097,118120.0,118110.0,0.24819]
[1753885987900,0.38196537,118120.0,118110.0,0.24619]
[1753885988141,0.38196537,118120.0,118110.0,0.24515]
[1753885988587,0.39043097,118120.0,118110.0,0.24515]
[1753885988798,0.02765594,118120.0,118110.0,0.24515]
[1753885989448,0.01598055,118120.0,118110.0,0.24719]
[1753885989654,0.02444594,118120.0,118110.0,0.24719]
[1753885989873,0.01384055,118120.0,118110.0,0.41652367]
[1753885990079,0.01384055,118120.0,118110.0,0.53594097]
[1753885990287,0.01384055,118120.0,118110.0,0.3346073]
[1753885990491,0.02444594,118120.0,118110.0,0.3316673]
[1753885990703,0.02444594,118120.0,118110.0,0.2006273]
[1753885990934,0.3904309,118120.0,118110.0,0.24507]
[1753885991151,0.00846618,118110.0,118100.0,0.11511]
[1753885991375,0.00214,118110.0,118100.0,0.3305873]
[1753885991584,0.01060611,118110.0,118100.0,0.3305873]
[1753885991811,0.01653509,118110.0,118100.0,0.3326273]
[1753885992057,0.03290679,118110.0,118100.0,0.24815]
[1753885992291,0.00214,118110.0,118100.0,0.41749801]
[1753885992513,0.38291581,118120.0,118100.0,0.41749801]
[1753885992724,0.39138163,118120.0,118100.0,0.41749801]
[1753885992939,0.39138156,118120.0,118100.0,0.30732801]
[1753885993155,0.39138156,118120.0,118110.0,0.11411]
[1753885993428,0.39352156,118120.0,118110.0,0.11411]
[1753885993655,0.40198745,118120.0,118110.0,0.11411]
[1753885994073,0.2085321,118120.0,118110.0,0.11411]
[1753885994281,0.20006657,118120.0,118110.0,0.11411]
[1753885994726,0.55437593,118120.0,118110.0,0.11411]
[1753885994957,0.54591033,118120.0,118110.0,0.001]
[1753885995169,0.76662458,118120.0,118110.0,0.001]
[1753885995593,0.77452744,118120.0,118110.0,0.001]
[1753885996914,1.11452744,118120.0,118110.0,0.001]
[1753885997351,0.19474933,118100.0,118090.0,0.11411]
[1753885997581,0.68215869,118100.0,118090.0,0.18197275]
[1753885997798,0.51281068,118100.0,118090.0,0.18401275]
[1753885998220,0.68215862,118100.0,118090.0,0.18401275]
[1753885998873,0.68215862,118100.0,118090.0,0.18501275]
[1753885999330,0.15850125,118100.0,118090.0,0.18501275]
[1753885999555,0.51281061,118100.0,118090.0,0.18501275]
[1753885999771,0.14156689,118100.0,118090.0,0.18501275]
[1753886000041,0.32784926,118100.0,118090.0,0.21671275]
[1753886000259,0.32784926,118100.0,118090.0,0.18501275]
[1753886000702,0.66843462,118100.0,118090.0,0.18297275]
[1753886000918,0.53747462,118100.0,118090.0,0.18297275]
[1753886001575,0.53747462,118100.0,118090.0,0.18501275]
[1753886001779,0.42655421,118100.0,118090.0,0.18501275]
[1753886003885,0.01693393,118100.0,118090.0,0.18795275]
[1753886004100,0.55412869,118120.0,118090.0,0.42001442]
[1753886004314,0.55412869,118120.0,118100.0,0.0627]
[1753886004315,0.14777229,118110.0,118100.0,0.0627]
[1753886004526,0.16417055,118110.0,118100.0,0.18179]
[1753886004735,0.00793187,118110.0,118100.0,0.56645531]
[1753886004943,0.62926889,118130.0,118110.0,0.23203367]
[1753886005187,0.64314938,118130.0,118120.0,0.00204]
[1753886005421,0.63468478,118130.0,118120.0,0.00204]
[1753886005648,0.63468478,118130.0,118120.0,0.1214]
[1753886005873,0.6352177,118130.0,118120.0,0.1214]
[1753886006109,0.64314836,118130.0,118120.0,0.1214]
[1753886006341,0.64314836,118130.0,118120.0,0.1514]
[1753886006342,0.06634376,118130.0,118120.0,0.1514]
[1753886006572,0.04806947,118130.0,118120.0,0.1224]
[1753886007029,0.06708903,118130.0,118120.0,0.11934]
[1753886007263,0.42139839,118130.0,118120.0,0.1173]
[1753886007498,0.06634376,118130.0,118120.0,0.28868933]
[1753886007746,0.04806947,118130.0,118120.0,0.32174933]
[1753886007968,0.04806947,118130.0,118120.0,0.15243]
[1753886008415,0.05653414,118130.0,118120.0,0.15243]
[1753886010802,0.04421066,118130.0,118120.0,0.25327]
[1753886011015,0.04421066,118130.0,118120.0,0.12243]
[1753886011233,0.43237964,118130.0,118120.0,0.1173]
[1753886011453,0.43532972,118130.0,118120.0,0.1173]
[1753886011655,0.60463472,118130.0,118120.0,0.1173]
[1753886011927,0.79452134,118130.0,118120.0,0.001]
[1753886012833,0.17778515,118120.0,118110.0,0.1163]
[1753886013058,0.66301451,118120.0,118110.0,0.1163]
[1753886013286,0.18626624,118110.0,118100.0,0.00306]
[1753886013510,0.01693228,118110.0,118100.0,0.03833]
[1753886013729,0.00792877,118110.0,118100.0,0.06903]
[1753886013961,0.00792877,118110.0,118100.0,0.43915531]
[1753886014444,0.13934532,118120.0,118110.0,0.0613]
[1753886014666,0.00846532,118120.0,118110.0,0.19425]